Cogmind - Beta 16 @@@ ROGUE MODE // 2025.11.12 @ 23:03:50 Player: TinyBoulder Result: Destroyed by as-07705 with Assembled Blade Performance ------------- Evolutions (0) 0 Regions Visited (2) 400 Robots Destroyed (12) 60 Value Destroyed (184) 184 Prototype IDs (2) 40 Alien Tech Used (0) 0 Bonus (0) 0 TOTAL SCORE: 684 Bonus ------- None Cogmind --------- Core Integrity 0/250 Matter 300/300 Energy 96/100 System Corruption 1% Temperature Cool (0) Movement Core (750) Ox14 Location -10/Mines Parts ------- > --- POWER (1) -------- (None) > --- PROPULSION (2) --- Light Treads > --- UTILITY (2) ------ High-capacity Storage Unit Structural Scanner > --- WEAPON (2) ------- Small Laser Mining Claw > --- INVENTORY (20) --- Light Treads Aluminum Leg Aluminum Leg Wheel Compact Wheel Compact Wheel Compact Wheel Compact Wheel Huge Storage Unit Experimental Sensor Array Seismic Detector Light Cannon Datajack Peak State ------------ > --- POWER ------------ Light Ion Engine > --- PROPULSION ------- Light Treads Light Treads > --- UTILITY ---------- High-capacity Storage Unit Seismic Detector > --- WEAPON ----------- Medium Laser Assault Rifle > --- INVENTORY -------- Ion Engine Light Treads Light Treads Aluminum Leg Aluminum Leg Wheel Wheel Wheel Compact Wheel Compact Wheel Compact Wheel Compact Wheel Huge Storage Unit Seismic Detector Small Laser Small Laser Light Cannon Grenade Launcher Datajack Mining Claw [Rating: 9] Favorites ----------- Power Light Ion Engine Engine Light Ion Engine Propulsion Light Treads Treads Light Treads Wheel Compact Wheel Utility High-capacity Storage Unit Device Seismic Detector Storage High-capacity Storage Unit Weapon Medium Laser Energy Gun Medium Laser Ballistic Gun Assault Rifle Launcher Grenade Launcher Slashing Weapon Mining Claw Build | -11 -10 -10 ------- Run | Yrd Mat Min Slots Evolved . | . . . Power . | . . . Propulsion . | . . . Utility . | . . . Weapon . | . . . Parts Attached 19 | 6 4 9 Power 2 | 1 . 1 Engine 2 | 1 . 1 Core . | . . . Reactor . | . . . Propulsion 6 | 2 . 4 Treads 3 | 2 . 1 Leg . | . . . Wheel 3 | . . 3 Hover . | . . . Flight . | . . . Utility 5 | 1 3 1 Device 2 | . 1 1 Storage 3 | 1 2 . Processor . | . . . Hackware . | . . . Protection . | . . . Artifact . | . . . Weapon 6 | 2 1 3 Energy Gun 3 | 2 . 1 Energy Cannon . | . . . Ballistic Gun 1 | . 1 . Ballistic Cannon . | . . . Launcher 1 | . . 1 Special Weapon . | . . . Impact Weapon . | . . . Slashing Weapon 1 | . . 1 Piercing Weapon . | . . . Special Melee Weapon . | . . . Unidentified Prototypes . | . . . Parts Lost 12 | . . 12 Power 2 | . . 2 Propulsion 5 | . . 5 Utility 1 | . . 1 Weapon 4 | . . 4 Highest Loss Streak 6 | . . 6 To Critical Strikes . | . . . Average Backups 13 | 2 12 17 Power . | . 1 . Propulsion 6 | 1 5 9 Utility 1 | . 1 2 Weapon 3 | . 3 3 Tool/Special . | . . . Unused Backups 13 | . 2 11 Power . | . . . Propulsion 9 | . 2 7 Utility 2 | . . 2 Weapon 1 | . . 1 Tool/Special 1 | . . 1 Average Slot Usage (%) 94 | . 96 91 Engine 12 | . 14 8 Treads 24 | . 28 17 Wheel 3 | . . 9 Device 11 | . 10 12 Storage 14 | . 14 14 Energy Gun 17 | . 18 14 Ballistic Gun 6 | . 9 . Launcher 3 | . . 8 Slashing Weapon 1 | . . 3 Peak Build Rating 9 | 6 9 9 Average Rating 7 | 4 7 8 On Entrance 5 | . 6 9 Avg Prop Armor Cover (%) 19 | . . 19 Naked Turns . | . . . Heaviest Build 87 | 11 87 51 Greatest Support 40 | 40 40 40 Greatest Overweight (x) 3 | . 2 3 Average Overweight (x) 1 | . 1 1 Largest Inventory Capacity 25 | 8 25 20 Average Capacity 19 | 6 21 20 Most Carried 20 | 6 20 20 Average Carried 13 | 2 12 17 Final Capacity 20 | 8 20 20 Final Carried 20 | 6 20 13 Class Distribution -------------------- 100% | Mutant Dominant Class ---------------- Mutant | -10/Materials Mutant | -10/Mines Resources | -11 -10 -10 ----------- Run | Yrd Mat Min Matter Collected 458 | 225 123 110 Remotely . | . . . Salvage Created 411 | . 255 156 Parts 23 | . 19 4 Haulers Intercepted 1 | . 1 . Recyclers Shooed . | . . . Parts Field Recycled . | . . . Retrieved Matter . | . . . Parts Self-Destructed . | . . . Prevented . | . . . Parts Restored . | . . . Kills | -11 -10 -10 ------- Run | Yrd Mat Min Combat Hostiles Destroyed 17 | . 7 10 Melee 4 | . . 4 Guns 12 | . 7 5 AOE 1 | . . 1 Classes Destroyed 6 | . 4 2 Worker 1 | . . 1 Hauler 1 | . 1 . Recycler 1 | . 1 . Swarmer 6 | . 6 . Grunt 3 | . 1 2 Assembled 8 | . . 8 Best Kill Streak 4 | . 3 4 Combat Bots Only 4 | . 3 4 Max Kills in Single Turn 2 | . 2 1 Gunslinging 1 | . 1 . Exploded 1 | . . 1 Melee 1 | . . 1 Uniques/NPCs Destroyed . | . . . Combat | -11 -10 -10 -------- Run | Yrd Mat Min Hostile Shots Fired 106 | . 54 52 Missed 29 | . 17 12 Hits 77 | . 37 40 Melee 4 | . . 4 Projectile 73 | . 37 36 AOE 11 | . . 11 Critical Strikes 2 | . . 2 Damage Taken 1291 | . 344 947 Core 280 | . 42 238 Absorbed by Shields . | . . . Core Remaining (%) 100 | 100 . . Volleys Fired 51 | . 22 29 Largest 2 | . 2 2 Hottest 90 | . 90 80 Shots Fired 86 | . 44 42 Gun 84 | . 44 40 Cannon . | . . . Launcher 2 | . . 2 Special . | . . . Kinetic 19 | . 14 5 Thermal 65 | . 30 35 Explosive 2 | . . 2 Electromagnetic . | . . . Robot Hit Streak 8 | . 5 8 Robot Miss Streak 3 | . 3 3 Penetration Max . | . . . Secondary Targets 2 | . 1 1 Max Gunslinging Chain 1 | . 1 1 Shots Hit Robots 53 | . 23 30 Core Hits 32 | . 13 19 Critical Kills . | . . . Critical Parts Destroyed . | . . . Critical Strikes 3 | . 2 1 Burn 3 | . 2 1 Melee Attacks 10 | . . 10 Impact . | . . . Slashing 10 | . . 10 Piercing . | . . . Sneak Attacks . | . . . Combat Hostiles . | . . . Follow-up Attacks . | . . . Damage Inflicted 853 | . 297 556 Guns 561 | . 297 264 Cannons . | . . . Explosions 147 | . . 147 Melee 145 | . . 145 Ramming . | . . . Kinetic 150 | . 112 38 Thermal 411 | . 185 226 Explosive 147 | . . 147 Electromagnetic . | . . . Impact . | . . . Slashing 145 | . . 145 Piercing . | . . . Highest Corruption 1 | . 1 1 Average Corruption 1 | . 1 1 Corruption Purged . | . . . Corruption Blocked . | . . . Effects 8 | . 2 6 Message Errors 2 | . 1 1 Matter Fused 3 | . 1 2 Heat Flow Errors 1 | . . 1 Energy Discharges 1 | . . 1 Weapon Failures 1 | . . 1 Overload Shots . | . . . Overflow Damage 20 | . . 20 Projectiles . | . . . Explosions . | . . . Melee 20 | . . 20 Knockbacks . | . . . Impact . | . . . Kinetic . | . . . Secondary . | . . . Self-Inflicted Damage . | . . . Shots . | . . . Rammed . | . . . Targets Rammed . | . . . Kicked . | . . . Crushed . | . . . Highest Temperature 240 | . 240 172 Average Temperature 55 | . 65 35 Received Heat Transfer 117 | . 90 27 Siege Activations . | . . . Martial Activations . | . . . Shielding Activations . | . . . Robots Disrupted . | . . . Combat Hostiles . | . . . Robots Corrupted . | . . . Combat Hostiles . | . . . Parts Fried . | . . . Impact Corruptions . | . . . Robots Melted . | . . . Combat Hostiles . | . . . Parts Melted 2 | . 2 . Heat Transferred 1301 | . 667 634 Parts Sabotaged . | . . . Parts Stolen . | . . . Parts Stripped . | . . . Power Chain Reactions . | . . . Alert | -11 -10 -10 ------- Run | Yrd Mat Min Maximum Alert Level . | . . . Low Security (%) 100 | 100 100 100 Level 1 . | . . . Level 2 . | . . . Level 3 . | . . . Level 4 . | . . . Level 5 . | . . . High Security . | . . . Max Security . | . . . Peak Influence 70 | . 70 50 Initial . | . . . Average 11 | . 15 5 Influence Increases 252 | . 192 60 Destroy 0b10 Robot/C 180 | . 140 40 Destroy 0b10 Robot/NC 15 | . 10 5 Destroy Leader 32 | . 22 10 Successful Hack 20 | . 20 . Destroy Structure 5 | . . 5 Influence Decreases 252 | . 192 60 Time Decay 242 | . 192 50 Lost Part 10 | . . 10 Squads Dispatched . | . . . Investigation . | . . . Extermination . | . . . Reinforcement . | . . . Assault . | . . . Garrison . | . . . Intercept . | . . . Searches Triggered . | . . . Construction Impeded . | . . . Haulers Reinforced . | . . . Active Scanning Responses . | . . . Cargo Convoy Interrupts . | . . . Stealth | -11 -10 -10 --------- Run | Yrd Mat Min Distress Signals 1 | . 1 . Communications Jammed . | . . . Distress Signals . | . . . Times Spotted 33 | . 11 22 Peak Tracking Total 6 | . 4 6 Tactical Retreats 4 | . . 4 Traps | -11 -10 -10 ------- Run | Yrd Mat Min Traps Triggered 1 | . 1 . Indirectly . | . . . Trap Hack Attempts . | . . . Triggered . | . . . Disarmed . | . . . Reprogrammed . | . . . Reused . | . . . Traps Extracted . | . . . Installed . | . . . Triggered . | . . . Machines | -11 -10 -10 ---------- Run | Yrd Mat Min Machines Disabled . | . . . Max in Single Turn . | . . . Machines Repaired . | . . . Machines Dismantled . | . . . Machines Sabotaged . | . . . Overloaded Fab Kills . | . . . Hacking | -11 -10 -10 --------- Run | Yrd Mat Min Machines Accessed 4 | . 4 . Terminals 2 | . 2 . Fabricators . | . . . Repair Stations . | . . . Recycling Units 2 | . 2 . Scanalyzers . | . . . Garrison Access . | . . . Total Hacks 13 | . 13 . Successful 8 | . 8 . Failed 5 | . 5 . Catastrophic 1 | . 1 . Database Lockouts . | . . . Manual 5 | . 5 . Terminals 8 | . 8 . Fabricators . | . . . Repair Stations . | . . . Recycling Units 5 | . 5 . Scanalyzers . | . . . Garrison Access . | . . . Terminal Hacks 3 | . 3 . Prototype ID Bank 1 | . 1 . Registered Prototypes 1 | . 1 . Zone Layout 1 | . 1 . Fabricator Hacks . | . . . Repair Station Hacks . | . . . Recycling Unit Hacks 3 | . 3 . Report Inventory 2 | . 2 . Retrieve Components 1 | . 1 . Scanalyzer . | . . . Garrison Access Hacks . | . . . Unauthorized Hacks 2 | . 2 . Terminals . | . . . Fabricators . | . . . Repair Stations . | . . . Recycling Units 2 | . 2 . Monitor 1 | . 1 . Recyclers 1 | . 1 . Scanalyzers . | . . . Garrison Access . | . . . Data Cores Recovered . | . . . Used . | . . . Hacking Detections 1 | . 1 . Full Trace Events . | . . . Feedback Events . | . . . Feedback Blocked . | . . . Robot Schematics Acquired . | . . . Robots Built . | . . . Authchips . | . . . Time . | . . . Total Robot Build Rating . | . . . Part Schematics Acquired . | . . . Parts Built . | . . . Authchips . | . . . Time . | . . . Total Part Build Rating . | . . . Part Studies Acquired . | . . . Parts Repaired . | . . . Time . | . . . Parts Recycled . | . . . Recycled Matter . | . . . Retrieved Matter . | . . . Retrieved Components 2 | . 2 . Parts Scanalyzed . | . . . Part Schematics Acquired . | . . . Parts Damaged . | . . . Bothacking | -11 -10 -10 ------------ Run | Yrd Mat Min Used RIF Installer . | . . . Robots Hacked . | . . . Non-combat . | . . . Combat . | . . . Robot Hacks Applied . | . . . Relay Couplers Released . | . . . Fabnet Peak Effective % . | . . . Robots Rewired . | . . . Allies Hacked . | . . . Hacks Repelled . | . . . Allies | -11 -10 -10 -------- Run | Yrd Mat Min Total Allies . | . . . Largest Group . | . . . Highest-Rated Group . | . . . Highest-Rated Ally . | . . . Total Orders . | . . . Ally Attacks . | . . . Total Damage . | . . . Kills . | . . . Allies Corrupted . | . . . Allies Melted . | . . . Intel | -11 -10 -10 ------- Run | Yrd Mat Min Active Infowar (turns) 1012 | . 605 407 Structural 109 | . . 109 Seismic 903 | . 605 298 Robot Analysis Total . | . . . Derelict Logs Recovered . | . . . Drone Launches . | . . . Drone Recoveries . | . . . Exploration | -11 -10 -10 ------------- Run | Yrd Mat Min Turns Passed 1298 | 95 763 440 Spaces Moved 463 | 52 261 150 Core 2 | 2 . . Treads 406 | 50 261 95 Legs . | . . . Wheels 55 | . . 55 Hover . | . . . Flight . | . . . Fastest Speed 50 | 50 160 115 Average Speed 225 | 155 255 195 Slowest Speed 320 | 160 320 240 Overloaded Moves . | . . . Propulsion Burnouts . | . . . Robots Hopped . | . . . Potential Cave-ins . | . . . Cave-ins Triggered . | . . . Exploration Rate (%) 33 | 6 52 42 Regions Visited 2 Branch Regions 1 Pre-discovered Areas . | . . . Known Exits Taken . | . . . Unknown Exits Taken 2 | 1 1 . Scrap Searched . | . . . Spaces Dug . | . . . Terrain Destroyed 5 | . . 5 Melee . | . . . Projectile . | . . . AOE 5 | . . 5 Terrain Rammed . | . . . Walls Destroyed . | . . . Machines Disabled . | . . . Actions | -11 -10 -10 --------- Run | Yrd Mat Min Total 609 | 63 313 233 Wait 39 | . 8 31 Move 461 | 51 260 150 Hop . | . . . Pick Up 24 | 6 16 2 Fast Attach 9 | 6 2 1 Attach 9 | . . 9 Detach . | . . . Swap 3 | . 2 1 Drop 3 | . 3 . Fire 51 | . 22 29 Melee 10 | . . 10 Ram . | . . . Kick . | . . . Crush . | . . . Escape Stasis . | . . . Rewire . | . . . Trap . | . . . Miscellaneous . | . . . Route ------- -11/Scrapyard -10/Materials (discovered 2 exits: [*Mat] / [*Min]) -10/Mines History --------- Turn | Location | Event 7 | -11/Scrapyard | Discovered new exit (range 14) 96 | -11/Scrapyard | Entered Materials 313 | -10/Materials | Build established: Mutant 377 | -10/Materials | Discovered new exit (range 16) 578 | -10/Materials | Discovered new exit (range 13) 859 | -10/Materials | Entered Mines 1052 | -10/Mines | Found a damaged Exp. Sensor Array with a note attached 1056 | -10/Mines | Found Prototype Device 1066 | -10/Mines | Assembled infested the area 1071 | -10/Mines | Assisted by a Guerilla fighting off Assembled 1130 | -10/Mines | Core integrity fell below 50% 1155 | -10/Mines | Lost 6 parts (1p3n2w) 1209 | -10/Mines | Lost 3 parts (1u2w) 1255 | -10/Mines | Core integrity fell below 20% 1299 | -10/Mines | Destroyed by as-07705 with Assembled Blade Last Messages --------------- 01169_ System corrupted: Energy discharge (-17). 01169_ K-01 Serf collects debris. 01178_ Sml. Laser destroyed. 01180_ Destroyed Asb. Hover Unit. 01180_ as-33881 destroyed. 01183_ Acquired 17 matter. 01183_ K-01 Serf collects debris. 01188_ Acquired 7 matter. 01190_ Acquired Structural Scanner. 01192_ Acquired 10 matter. 01205_ Acquired Com. Wheel. 01235_ as-66180 destroyed. 01240_ Com. Wheel destroyed. 01246_ as-63090 destroyed. 01260_ as-95153 misfires. 01266_ as-95153 destroyed. 01269_ Acquired 10 matter. 01271_ A derelict is hurriedly installing traps. 01282_ as-85578 destroyed. 01297_ Com. Wheel destroyed. Map ----- +----------------------------------------------------+ | ??# #####????????????????????????????????????????? | | ?## ###??????????????????????????????????????? | | ?# ###????????????????????????????????????? | | ## ##???????????????????????????????????? | | ##??????????????????????????????????? | | # #??????????????????????????????????? | | ## % # #??????????????????????????????????? | | ## = ##?????????????????????????????????? | | # # #?????????????????????????????????? | | # #####?????????????????????????????? | | # # #####?????????????????????????????? | | ### ### ??????????????????????????? | | ??### #### ??????????????????????????? | | ????## # #### ??????????????????????????? | | ?????#### # #" #### ??????????????????? ?????? | | ??????######## #### ????????????????? ?????? | | ??????### "### ##??? ####?????????? ??????? | | ??????## ### ####### ####?????? ##??????? | | #???????## " ## %####### ?????? # ##??????? | | ????????### #%!# ###?? ##### " ##??????? | | ?????????### % ##??## ##### " ???????????? | | ??????????## !% ###?## ?????????????? | | ?????????? ## ###### ???????????????? | | ?????????? ### ########%# ???????????????? | | ???????????#### %#######%##???????????????? | | ????????????### !=a@% a ##???????????????? | | ????????????### ###########???????????????? | | ???????????### ##############???????????????? | | ???????????## ######????????????????????????? | | ???????????## ###???????????????????????????? | | ???????????### ###????????????????????????????? | | ???????????##########????????????????????????????? | | ????????????########?????????????????????????????? | | ?????????????????????????????????????????????????? | | ?????????????????????????????????????????????????? | | ?????????????????????????????????????????????????? | | | | | | | | | | | | | | | | | | | | | | | | | | | | | +----------------------------------------------------+ Best States ------------- Heat Dissipation 25 Energy Generation 10 Energy Capacity 250 Matter Stores 300 Matter Capacity 300 Sight Range 16 Terrain Scan Density 10 Evasion (%) 40 Recoil Reduction 2 Item Schematics ----------------- None Robot Schematics ------------------ None Fabricated ------------ Nothing Repaired ---------- Nothing Studied --------- None Alien Tech Used ----------------- None Achievements -------------- None Challenges ------------ None Game ------ Seed NovaSurgePower Manual? 0 Play Time 00:09:44 Cumulative 124.0 hours Start 2025.11.12 @ 22:54:01 End 2025.11.12 @ 23:03:50 Sessions 1 Manual Loads 0 Difficulty Rogue Special Mode None Game No. 112 Rogue 111 Adventurer 0 Explorer 1 Win Type - Total 7 Types 4/0/1/1/0/0/0/1/0/0 Lore% 70 Gallery% 66 Achievement% 38 Wizard Run 0 Options --------- Layout 0 ASCII 0 Keyboard 0 Movement Mouse Keybinds 0 Fullscreen 2 Font 18/Terminus Map View 76x50 Zoom Use 0% Tactical HUD 1 Map Filters NONE Filters NONE Steam 1 RUN: f7c44f76-eb0c-4dbc-ba1f-d5fd60908dbf